bitfinex-derivatives/quotes_ETHF0:USTF0_20210102
["timestamp","ask_amount","ask_price","bid_price","bid_amount"]
[1609606799378,6.01438,780.34,779.87,6.01438]
[1609606800281,6.01438,780.34,779.87,21.7531782]
[1609606801280,2.5279,780.31,779.87,21.7531782]
[1609606801681,2.5279,780.31,779.87,6.01438]
[1609606802081,216.18626033,780.55,779.87,6.01438]
[1609606802981,3.421,779.88,779.87,6.01438]
[1609606803183,216.18626033,780.55,779.87,6.01438]
[1609606803381,6.01438,780.31,780.07,6.01438]
[1609606803582,216.18626033,780.55,780.07,6.01438]
[1609606805485,6.01438,780.41,780.19,6.01438]
[1609606807585,6.01438,780.41,780.27,6.01438]
[1609606808489,6.01438,780.41,780.03,15.70803747]
[1609606808686,5.18975582,780.3,780.03,15.70803747]
[1609606808987,20.18975582,780.3,780.03,15.70803747]
[1609606809388,20.18975582,780.3,779.65,21.43580703]
[1609606809589,20.18975582,780.3,780.17,6.01438]
[1609606810093,5.18975582,780.3,780.17,6.01438]
[1609606811293,5.18975582,780.3,779.47,21.46108942]
[1609606811294,15.0,780.29,779.47,21.46108942]
[1609606811493,6.01438,780.02,779.83,6.01438]
[1609606811693,10.19538,780.02,779.47,21.46108942]
[1609606812095,10.19538,780.02,779.46,21.48069312]
[1609606812498,25.19538,780.02,779.46,21.48069312]
[1609606812695,25.19538,780.02,779.41,3.108]
[1609606812897,25.19538,780.02,779.2,21.52014447]
[1609606813500,6.01438,779.53,779.2,21.52014447]
[1609606813696,9.18138,779.53,779.2,21.52014447]
[1609606814701,15.0,779.52,779.2,21.52014447]
[1609606815097,9.18138,779.53,779.26,18.66196051]
[1609606815498,6.01438,779.39,779.26,18.66196051]
[1609606816807,15.0,779.38,779.26,18.66196051]
[1609606817609,6.01438,779.27,779.26,18.66196051]
[1609606817810,24.13138,779.27,779.26,18.66196051]
[1609606818610,24.13138,779.27,779.06,18.70141413]
[1609606819508,6.01438,779.07,779.06,18.70141413]
[1609606819709,6.01438,779.07,778.56,6.01438]
[1609606819710,25.94138,779.07,778.72,18.75741164]
[1609606821610,6.01438,778.73,778.72,18.75741164]
[1609606821813,21.01438,778.73,778.72,18.75741164]
[1609606822014,25.30238,778.73,778.58,18.78952772]
[1609606823512,6.01438,778.59,778.14,18.84772141]
[1609606823712,15.0,778.58,778.14,18.84772141]
[1609606824614,6.01438,778.59,778.14,18.84772141]
[1609606824813,6.01438,778.59,778.04,18.8571219]
[1609606825513,6.01438,778.32,778.22,6.01438]
[1609606825714,10.44438,778.32,778.22,6.01438]
[1609606825915,10.44438,778.32,778.21,18.83586715]
[1609606827415,4.43,778.32,778.22,18.84636079]
[1609606828718,4.43,778.32,778.14,18.8673245]
[1609606828917,15.0,778.31,778.14,18.8673245]
[1609606829519,6.01438,778.15,778.14,18.8673245]
[1609606829717,10.46738,778.15,778.14,18.8673245]
[1609606830518,10.46738,778.15,777.99,21.76998981]
[1609606830519,10.46738,778.15,778.07,18.90912238]
[1609606830719,4.453,778.15,778.07,18.90912238]
[1609606830920,4.43,778.32,778.07,18.90912238]
[1609606831120,4.288,778.73,778.07,18.90912238]
[1609606831320,15.0,779.05,778.07,18.90912238]
[1609606831522,6.01438,778.71,778.52,6.01438]
[1609606831719,9.59238,778.71,778.52,6.01438]
[1609606831920,3.578,778.71,778.52,6.01438]
[1609606833020,3.658,778.89,778.52,6.01438]
[1609606833221,4.278,778.71,778.52,6.01438]
[1609606833620,4.278,778.71,778.7,6.01438]
[1609606835422,15.0,779.58,778.7,6.01438]
[1609606835623,6.01438,779.41,779.06,6.01438]
[1609606836021,15.0,779.98,779.06,6.01438]
[1609606836823,2.70971118,780.03,779.06,10.82038]
[1609606837425,2.70829457,780.25,779.15,15.91497154]
[1609606837624,6.01438,780.14,780.03,6.01438]
[1609606837825,10.31738,780.14,780.03,6.01438]
[1609606838631,4.303,780.14,780.03,6.01438]
[1609606839531,4.303,780.14,780.13,6.01438]
[1609606842837,7.10913582,780.3,780.13,6.01438]
[1609606843538,6.01438,780.16,779.84,6.01438]
[1609606843738,9.92438,780.16,779.84,6.01438]
[1609606845443,3.91,780.16,779.84,6.01438]
[1609606845640,3.91,780.16,780.15,6.01438]
[1609606848842,6.01438,780.28,780.15,6.01438]
[1609606849742,6.01438,780.28,780.27,6.01438]
[1609606850744,1.09475582,780.3,780.27,6.01438]
[1609606851744,216.18626033,780.55,780.27,6.01438]
[1609606853246,216.18626033,780.55,780.48,15.75482779]
[1609606853645,216.18626033,780.55,780.54,6.01438]
[1609606854247,208.34681985,780.55,780.54,6.01438]
[1609606856848,192.67013363,780.55,780.54,6.01438]
[1609606860149,177.00235667,780.55,780.54,6.01438]
[1609606861651,169.16727316,780.55,780.54,6.01438]
[1609606863252,153.49823537,780.55,780.54,6.01438]
[1609606868153,137.8348471,780.55,780.54,6.01438]
[1609606870057,130.00456908,780.55,780.54,6.01438]
[1609606870759,117.50536908,780.55,780.54,6.01438]
[1609606871856,101.84565491,780.55,780.54,6.01438]
[1609606872659,74.22665491,780.55,780.54,6.01438]
[1609606873666,60.45905491,780.55,780.54,6.01438]
[1609606876376,44.80565823,780.55,780.54,35.88428753]
[1609606876770,33.19955823,780.55,780.54,35.88428753]
[1609606877672,29.99955823,780.55,780.54,35.88428753]
[1609606879376,22.17474224,780.55,780.54,6.01438]
[1609606879974,6.52418623,780.55,780.54,6.01438]
[1609606884679,32.3131,781.61,780.54,6.01438]
[1609606884680,27.46762101,781.61,780.54,6.01438]
[1609606885879,27.46762101,781.61,781.6,6.01438]
[1609606886480,19.64289914,781.61,781.6,6.01438]
[1609606887881,185.36630203,781.97,781.6,6.01438]
[1609606888281,185.36630203,781.97,781.6,10.14038]
[1609606889882,185.36630203,781.97,781.96,6.01438]
[1609606892785,185.36630203,781.97,781.96,24.42308843]
[1609606892786,177.54169578,781.97,781.96,24.42308843]
[1609606893486,177.54169578,781.97,781.96,6.01438]
[1609606897995,169.7182309,781.97,781.96,6.01438]
[1609606900597,169.7182309,781.97,781.84,21.29912742]
[1609606900798,169.7182309,781.97,747.27,0.09400826]
[1609606900799,173.4332309,781.97,781.96,18.46712842]
[1609606901603,173.4332309,781.97,781.96,9.10282842]
[1609606901804,179.4476109,781.97,781.96,9.10282842]
[1609606902004,179.4476109,781.97,781.67,21.33639099]
[1609606902906,179.4476109,781.97,781.41,3.715]
[1609606902907,179.4476109,781.97,781.72,15.67973686]
[1609606903905,6.01438,781.86,781.72,15.67973686]
[1609606904406,173.4332309,781.97,781.7,15.67877733]
[1609606904806,173.4332309,781.97,781.7,10.67877733]
[1609606905107,173.4332309,781.97,781.65,6.01438]
[1609606905811,6.01438,781.95,781.83,6.01438]
[1609606906207,173.4332309,781.97,781.83,6.01438]
[1609606907810,6.01438,781.95,781.6,6.01438]
[1609606908211,6.01438,781.95,781.55,21.35406379]
[1609606908411,173.4332309,781.97,781.55,21.35406379]
[1609606909111,173.4332309,781.97,781.54,21.3593871]
[1609606909812,173.4332309,781.97,781.71,6.01438]
[1609606911916,173.4332309,781.97,781.81,6.01438]
[1609606912318,165.60798543,781.97,781.81,6.01438]
[1609606913819,165.60798543,781.97,781.96,6.01438]
[1609606917630,165.60798543,781.97,781.87,15.69050038]
[1609606918931,157.78371113,781.97,781.82,18.50668776]
[1609606919930,157.78371113,781.97,781.96,6.01438]
[1609606924234,149.95865087,781.97,781.96,21.68558156]
[1609606924935,149.95865087,781.97,781.96,6.01438]
[1609606927439,149.95865087,781.97,781.89,15.67750953]
[1609606927938,6.01438,781.94,781.89,15.67750953]
[1609606929138,21.01438,781.94,781.89,15.67750953]
[1609606930039,6.01438,781.94,781.89,15.67750953]
[1609606930942,6.01438,781.94,781.43,15.74640488]
[1609606931942,6.01438,781.51,781.43,15.74640488]
[1609606932741,6.01438,781.51,781.48,15.74190473]
[1609606934046,5.99912192,781.51,781.45,15.73118735]
[1609606935744,5.99912192,781.51,781.47,15.74795733]
[1609606937046,5.99912192,781.51,781.18,6.01438]
[1609606937047,5.99912192,781.51,781.36,15.77175257]
[1609606937445,20.99912192,781.51,781.36,15.77175257]
[1609606937848,20.99912192,781.51,781.4,15.77278888]
[1609606938648,5.99912192,781.51,781.4,15.77278888]
[1609606939452,20.99912192,781.51,781.4,15.77278888]
[1609606939651,20.99912192,781.51,781.32,15.77933075]
[1609606940450,5.99912192,781.51,781.32,15.77933075]
[1609606940650,20.99912192,781.51,781.32,15.77933075]
[1609606940851,20.99912192,781.51,781.2,15.79951729]
[1609606941851,5.99912192,781.51,781.2,15.79951729]
[1609606942256,5.99912192,781.51,781.21,15.80048123]
[1609606943356,5.99912192,781.51,781.22,15.79936489]
[1609606944257,5.99912192,781.51,781.2,15.8104654]
[1609606945260,5.99912192,781.51,781.24,15.80300946]
[1609606945860,6.01438,781.51,781.32,6.01438]
[1609606946060,3.601,781.63,781.32,6.01438]
[1609606946263,11.6513,781.96,781.32,6.01438]
[1609606946660,11.6513,781.96,781.32,21.80324315]
[1609606947060,149.95865087,781.97,781.32,21.80324315]
[1609606947861,149.95865087,781.97,781.61,15.74911878]
[1609606948059,155.97303087,781.97,781.82,6.01438]
[1609606948861,155.97303087,781.97,781.61,15.74911878]
[1609606948862,155.97303087,781.97,781.83,15.71784539]
[1609606949864,155.97303087,781.97,781.87,15.71155269]
[1609606950063,149.95865087,781.97,781.87,15.71155269]
[1609606951365,149.95865087,781.97,781.8,15.7326283]
[1609606951965,6.01438,781.81,781.8,15.7326283]
[1609606952166,9.37538,781.81,781.8,15.7326283]
[1609606952766,3.361,781.81,781.8,15.7326283]
[1609606953368,3.361,781.81,781.47,6.01438]
[1609606953369,3.361,781.81,781.55,15.76638794]
[1609606953973,3.361,781.81,781.8,6.01438]
[1609606954577,3.36091542,781.81,781.8,6.01438]
[1609606954977,3.36091542,781.81,781.79,15.74488973]
[1609606955576,3.36091542,781.81,781.66,18.6055134]
[1609606955974,3.36091542,781.81,781.8,6.01438]
[1609606957176,6.01438,781.88,781.8,6.01438]
[1609606957377,6.01438,781.88,781.79,15.7486886]
[1609606957977,6.01438,781.8,781.79,15.7486886]
[1609606958377,9.87438,781.8,781.79,15.7486886]
[1609606958578,9.87438,781.8,781.67,15.76911362]
[1609606959878,9.87438,781.8,781.59,15.78215682]
[1609606960278,6.01438,781.61,781.59,15.78215682]
[1609606960479,10.47838,781.61,781.59,15.78215682]
[1609606961280,4.464,781.61,781.59,15.78215682]
[1609606962379,6.01438,781.6,781.59,15.78215682]
[1609606962579,6.01438,781.6,781.57,15.78291611]
[1609606964783,6.01438,781.6,781.5,2.02929469]
[1609606965884,21.01438,781.6,781.5,2.02929469]
[1609606966283,6.01438,781.51,781.5,2.02929469]
[1609606969885,6.01438,781.51,781.5,2.12919469]
[1609606975291,4.464,781.61,781.5,2.12919469]
[1609606975490,3.86,781.8,781.5,2.12919469]
[1609606975691,149.95865087,781.97,781.5,2.12919469]
[1609606976092,164.95865087,781.97,781.5,2.12919469]
[1609606976295,6.01438,781.51,781.5,2.12919469]
[1609606976489,10.05438,781.51,781.5,2.12919469]
[1609606985702,25.05438,781.51,781.5,2.12919469]
[1609606986501,25.05438,781.51,781.2,15.76325469]
[1609606986901,10.05438,781.51,781.2,15.76325469]
[1609606987502,10.05438,781.51,780.99,15.78607232]
[1609606987803,15.0,781.5,780.99,15.78607232]
[1609606988402,15.0,781.5,781.06,15.77442411]
[1609606988803,4.04,781.51,781.06,15.77442411]
[1609606989002,149.95865087,781.97,781.06,15.77442411]
[1609606989003,15.0,781.5,781.06,15.77442411]
[1609606989206,18.234,781.5,781.06,15.77442411]
[1609606989605,18.234,781.5,781.01,15.77983655]
[1609606990008,3.234,781.5,781.01,15.77983655]
[1609606990408,6.01438,781.13,781.07,6.01438]
[1609606990605,10.84638,781.13,781.07,6.01438]
[1609606990812,4.832,781.13,781.07,6.01438]
[1609606991208,4.832,781.13,781.02,15.78403888]
[1609606992405,4.832,781.13,781.12,6.01438]
[1609606993205,3.234,781.5,781.12,6.01438]
[1609606993808,3.234,781.5,781.17,4.832]
[1609606994007,3.234,781.5,781.12,21.77958226]
[1609606994207,3.159,781.5,781.12,21.77958226]
[1609606994410,3.159,781.5,781.49,6.01438]
[1609606999015,3.159,781.5,781.38,18.5816759]
[1609606999215,6.01438,781.85,781.38,18.5816759]
[1609607000117,15.0,781.84,781.38,18.5816759]
[1609607000316,15.0,781.84,781.14,4.029]
[1609607000317,15.0,781.84,781.37,18.58957809]
[1609607000516,6.01438,781.38,781.37,18.58957809]
[1609607000717,9.58938,781.38,781.37,18.58957809]
[1609607000917,9.58938,781.38,781.26,15.76435697]
[1609607002120,9.58938,781.38,781.21,15.7694923]
[1609607002520,6.01438,781.22,781.21,15.7694923]
[1609607002720,9.40938,781.22,781.21,15.7694923]
[1609607003722,9.40938,781.22,781.14,15.79322769]
[1609607004322,9.40938,781.22,781.05,15.79849758]
[1609607004524,6.01438,781.06,781.05,15.79849758]
[1609607004722,9.88138,781.06,781.05,15.79849758]
[1609607005423,9.88138,781.06,780.95,15.81554786]
[1609607006523,6.01438,780.96,780.95,15.81554786]
[1609607007324,6.01438,780.96,780.9,15.82410598]
[1609607008124,3.867,781.06,780.9,15.82410598]
[1609607008524,3.867,781.06,780.9,21.83848598]
[1609607009131,3.867,781.06,780.9,6.01438]
[1609607009828,3.395,781.22,780.9,6.01438]
[1609607010027,6.01438,781.25,780.9,6.01438]
[1609607010230,6.01438,781.25,781.04,15.83438349]
[1609607010427,6.01438,781.15,781.04,15.83438349]
[1609607010627,3.965,781.15,781.04,15.83438349]
[1609607011031,3.965,781.15,781.1,15.83385235]
[1609607011828,18.965,781.15,781.1,15.83385235]
[1609607012231,18.965,781.15,781.09,15.83693845]
[1609607012428,6.01438,781.1,781.09,15.83693845]
[1609607012630,21.01438,781.1,781.09,15.83693845]
[1609607013732,6.01438,781.1,781.09,15.83693845]
[1609607015337,21.01438,781.1,781.09,15.83693845]
[1609607016636,21.01438,781.1,780.91,15.86850228]
[1609607016936,6.01438,781.1,780.91,15.86850228]
[1609607017337,15.0,781.09,780.91,15.86850228]
[1609607017538,15.0,781.09,780.64,15.90391754]
[1609607018437,6.01438,780.65,780.54,18.78952073]
[1609607018639,9.73638,780.65,780.54,18.78952073]
[1609607018837,3.722,780.65,780.54,18.78952073]
[1609607020538,6.01438,780.55,780.54,18.78952073]
[1609607023442,21.01438,780.55,780.54,18.78952073]
[1609607025942,15.0,780.55,780.39,21.69239121]
[1609607026142,15.0,780.54,780.39,21.69239121]
[1609607026443,6.01438,780.4,780.39,21.69239121]
[1609607026650,25.36438,780.4,780.39,21.69239121]
[1609607027252,25.36438,780.4,780.09,6.01438]
[1609607027253,25.36438,780.4,780.34,18.02853014]
[1609607027649,10.36438,780.4,780.34,18.02853014]
[1609607028052,25.36438,780.4,780.34,18.02853014]
[1609607029652,25.36438,780.4,780.34,2.02929469]
[1609607031756,25.36438,780.4,780.39,0.6]
[1609607032557,25.36438,780.4,779.98,16.0313186]
[1609607033864,25.36438,780.4,779.86,16.03585089]
[1609607034464,6.01438,779.87,779.86,16.03585089]
[1609607034664,25.28038,779.87,779.86,16.03585089]
[1609607035667,25.28038,779.87,779.23,27.69828791]
[1609607035668,25.28038,779.87,779.74,16.04713981]
[1609607035866,10.28038,779.87,779.74,16.04713981]
[1609607036469,6.01438,779.75,779.74,16.04713981]
[1609607036869,6.01438,779.75,779.73,16.071637]
[1609607037370,4.266,779.87,779.73,16.071637]
[1609607038172,4.266,779.87,779.64,18.99498728]
[1609607038570,4.266,779.87,779.78,6.01438]
[1609607039274,4.266,779.87,779.82,18.97485117]
[1609607039673,4.35,780.4,779.82,18.97485117]
[1609607039873,12.243,780.64,779.82,18.97485117]
[1609607040474,12.243,780.64,779.86,18.98101196]
[1609607040675,6.01438,780.51,780.3,6.01438]
[1609607040874,6.01438,780.51,779.86,18.98101196]
[1609607041475,11.8119,781.0,779.86,18.98101196]
[1609607041876,11.8119,781.0,779.51,12.064]
[1609607041877,11.8119,781.0,780.36,16.01967599]
[1609607042677,6.01438,781.01,780.89,6.01438]
[1609607042876,12.2436,781.4,780.51,0.3054]
[1609607043077,12.2436,781.4,780.58,16.00142722]
[1609607045479,12.2436,781.4,780.58,34.89992819]
[1609607045679,12.2436,781.4,780.74,15.99103928]
[1609607046682,12.2436,781.4,781.31,6.01438]
[1609607046881,6.01438,781.44,781.31,6.01438]
[1609607047283,11.6932,781.93,781.31,6.01438]
[1609607048381,15.0,781.92,781.31,6.01438]
[1609607048580,6.01438,781.62,781.15,15.90967865]
[1609607048781,9.39038,781.62,781.15,15.90967865]
[1609607049380,24.39038,781.62,781.15,15.90967865]
[1609607049584,24.39038,781.62,781.2,15.91110562]
[1609607050580,6.01438,781.21,781.2,15.91110562]
[1609607050781,25.26738,781.21,781.2,15.91110562]
[1609607053583,25.26738,781.21,780.89,21.6969622]
[1609607054589,6.01438,780.9,780.89,21.6969622]
[1609607054789,21.01438,780.9,780.89,21.6969622]
[1609607054990,25.16138,780.9,780.89,21.6969622]
[1609607055391,10.16138,780.9,780.89,21.6969622]
[1609607055993,4.147,780.9,780.89,21.6969622]
[1609607057694,4.253,781.21,780.89,21.6969622]
[1609607057893,3.376,781.62,780.89,21.6969622]
[1609607058094,15.0,781.91,780.89,21.6969622]
[1609607058594,6.01438,781.48,781.27,6.01438]
[1609607058795,9.61638,781.48,781.27,6.01438]
[1609607059002,9.61638,781.48,780.89,21.6969622]
[1609607060600,9.61638,781.48,781.2,6.01438]
[1609607061100,9.61638,781.48,780.89,21.6969622]
[1609607061300,15.0,781.47,780.89,21.6969622]
[1609607061800,0.6,781.31,780.89,21.6969622]
[1609607062002,4.981,781.31,780.66,21.7126801]
[1609607062202,15.0,781.3,780.66,21.7126801]
[1609607062600,6.01438,780.77,780.74,6.01438]
[1609607063600,6.01438,780.77,780.51,0.3054]
[1609607064102,6.01438,780.77,780.72,15.98393533]
[1609607064301,3.644,780.92,780.72,15.98393533]
[1609607064604,6.01438,780.83,780.72,15.98393533]
[1609607064802,15.0,780.82,780.72,15.98393533]
[1609607065001,15.0,780.82,780.51,0.3054]
[1609607065002,15.0,780.82,780.63,18.87526387]
[1609607065701,6.01438,780.83,780.63,18.87526387]
[1609607066602,3.644,780.92,780.73,15.97698688]
[1609607067702,3.644,780.92,780.77,15.97065023]
[1609607067904,12.0931,781.3,780.77,15.97065023]
[1609607068704,6.01438,781.09,780.77,15.97065023]
[1609607068902,4.004,781.09,780.77,15.97065023]
[1609607070305,4.981,781.31,780.77,15.97065023]
[1609607070505,4.92,781.09,780.77,15.97065023]
[1609607070705,6.01438,781.08,780.77,15.97065023]
[1609607072711,6.01438,780.81,780.77,15.97065023]
[1609607073911,3.495,780.9,780.77,15.97065023]
[1609607075718,3.48732413,780.9,780.8,18.84918364]
[1609607076617,6.01438,780.81,780.8,18.84918364]
[1609607077519,6.01438,780.81,780.67,18.88487583]
[1609607077717,3.48732413,780.9,780.67,18.88487583]
[1609607077917,4.92,781.09,780.67,18.88487583]
[1609607078118,4.981,781.31,780.67,18.88487583]
[1609607078518,15.0,781.3,780.66,18.88847973]
[1609607078717,6.01438,781.09,780.76,6.01438]
[1609607078917,10.93038,781.09,780.76,6.01438]
[1609607080220,4.916,781.09,780.76,6.01438]
[1609607080618,4.916,781.09,781.08,6.01438]
[1609607081218,4.916,781.09,780.66,18.88847973]
[1609607082221,15.0,781.08,780.66,18.88847973]
[1609607082621,6.01438,781.01,780.67,6.01438]
[1609607083623,15.0,781.0,780.67,6.01438]
[1609607083823,15.0,781.0,780.66,18.88847973]
[1609607084023,15.0,781.0,780.51,4.029]
[1609607084024,15.0,781.0,780.97,15.98007832]
[1609607085023,15.0,781.0,780.85,16.06109667]
[1609607086225,0.4,780.97,780.85,16.06109667]
[1609607086424,0.4,780.97,780.84,16.07624698]
[1609607086623,6.01438,780.85,780.84,16.07624698]
[1609607086823,21.01438,780.85,780.84,16.07624698]
[1609607087023,25.34038,780.85,780.84,16.07624698]
[1609607087727,25.34038,780.85,780.62,16.11572851]
[1609607087926,10.34038,780.85,780.62,16.11572851]
[1609607088628,15.0,780.84,780.62,16.11572851]
[1609607090529,15.0,780.84,780.68,16.11770366]
[1609607090730,6.01438,780.69,780.68,16.11770366]
[1609607090931,25.33738,780.69,780.68,16.11770366]
[1609607092333,25.33738,780.69,780.35,16.16537737]
[1609607092831,6.01438,780.36,780.35,16.16537737]
[1609607093032,24.59038,780.36,780.35,16.16537737]
[1609607093435,24.59038,780.36,780.16,16.17347342]
[1609607094536,24.59038,780.36,780.18,16.17909986]
[1609607094734,6.01438,780.19,780.18,16.17909986]
[1609607094938,21.01438,780.19,780.18,16.17909986]
[1609607095134,24.22438,780.19,780.18,16.17909986]
[1609607095634,24.22438,780.19,780.17,16.22047907]
[1609607097842,24.22438,780.19,780.01,19.16965708]
[1609607097843,24.22438,780.19,780.05,16.23562254]
[1609607098843,6.01438,780.06,779.97,16.46357772]
[1609607099044,15.0,780.05,779.97,16.46357772]
[1609607099944,15.0,780.05,779.66,19.47943571]
[1609607100145,92.8341,780.05,779.66,19.47943571]
[1609607100744,6.01438,779.67,779.66,19.47943571]
[1609607100944,25.28838,779.67,779.66,19.47943571]
[1609607101549,25.28838,779.67,779.52,19.49993717]
[1609607102747,6.01438,779.53,779.21,19.56650975]
[1609607102945,15.0,779.52,779.21,19.56650975]
[1609607104747,6.01438,779.22,779.21,19.56650975]
[1609607104945,9.22738,779.22,779.21,19.56650975]
[1609607105545,3.213,779.22,779.21,19.56650975]
[1609607106049,3.21298973,779.22,779.07,22.56609153]
[1609607106445,0.4,779.21,779.07,22.56609153]
[1609607106745,0.4,779.21,779.17,6.01438]
[1609607107446,0.4,779.21,779.07,22.56609153]
[1609607108746,6.01438,779.09,779.08,6.01438]
[1609607108946,0.4,779.21,779.08,6.01438]
[1609607109750,0.4,779.21,779.08,31.57753063]
[1609607110752,0.4,779.21,779.2,6.01438]
[1609607112052,0.4,779.21,779.08,25.56315063]
[1609607112753,0.39997114,779.21,779.2,6.01438]
[1609607113151,0.39997114,779.21,779.15,28.60569511]
[1609607114553,0.39996074,779.21,779.16,28.60595087]
[1609607116152,0.39996074,779.21,779.14,25.63524595]
[1609607117554,0.39996074,779.21,778.98,28.65115724]
[1609607117555,0.39996074,779.21,779.16,25.62951702]
[1609607118353,0.39996074,779.21,779.14,25.60734491]
[1609607119754,0.39996074,779.21,779.11,25.57929484]
[1609607119955,0.39994219,779.21,779.11,25.57929484]
[1609607120857,6.01438,779.12,779.11,25.57929484]
[1609607121758,21.01438,779.12,779.11,25.57929484]
[1609607122860,6.01438,779.12,779.11,25.57929484]
[1609607123061,21.01438,779.12,779.11,25.57929484]
[1609607124065,6.01438,779.12,779.11,25.57929484]
[1609607125372,0.39994219,779.21,779.11,25.57929484]
[1609607126872,6.01438,779.12,779.11,25.57929484]
[1609607128473,21.01438,779.12,779.11,25.57929484]
[1609607129577,6.01438,779.12,779.11,25.57929484]
[1609607129775,21.01438,779.12,779.11,25.57929484]
[1609607130676,6.01438,779.12,779.11,25.57929484]
[1609607130880,6.01436144,779.12,778.98,28.51580639]
[1609607131479,21.01436144,779.12,778.98,28.51580639]
[1609607132080,21.01436144,779.12,779.01,19.6885116]
[1609607132882,6.01438,779.02,779.01,19.6885116]
[1609607133083,24.20538,779.02,779.01,19.6885116]
[1609607133284,24.20538,779.02,778.93,19.66922802]
[1609607134583,24.20538,779.02,778.23,30.2603508]
[1609607134584,24.20538,779.02,778.98,16.66483934]
[1609607134784,9.20538,779.02,778.98,16.66483934]
[1609607135385,9.20538,779.02,778.95,16.66748693]
[1609607136485,9.20538,779.02,778.91,19.70048672]
[1609607136886,0.39998144,778.91,778.78,6.01438]
[1609607137087,0.39997103,778.91,778.89,22.68671071]
[1609607145999,0.39995243,778.91,778.82,25.70792843]
[1609607146901,6.01438,778.83,778.82,25.70792843]
[1609607147099,10.20338,778.83,778.82,25.70792843]
[1609607147299,10.20338,778.83,778.75,22.81898636]
[1609607148101,10.20338,778.83,778.74,22.85304134]
[1609607148702,10.20338,778.83,778.7,22.86872809]
[1609607148901,6.01438,778.73,778.7,22.86872809]
[1609607151201,6.01438,778.73,778.4,6.01438]
[1609607151202,6.01438,778.73,778.72,22.86513514]
[1609607152403,6.01436144,778.73,778.72,22.86513514]
[1609607153104,6.01436144,778.73,778.71,22.93120957]
[1609607155909,15.0,778.72,778.71,22.93120957]
[1609607160316,14.99998143,778.72,778.67,22.94857586]
[1609607162820,14.99998143,778.72,778.57,19.97917524]
[1609607163020,6.01438,778.58,778.57,19.97917524]
[1609607163222,24.44636143,778.58,778.57,19.97917524]
[1609607164224,24.44636143,778.58,778.46,20.07498227]
[1609607164923,6.01438,778.47,778.46,20.07498227]
[1609607165124,21.01436143,778.47,778.46,20.07498227]
[1609607165526,21.01436143,778.47,778.42,20.0816201]
[1609607166530,21.01436143,778.47,778.4,20.07149835]
[1609607167729,0.4,778.42,778.4,20.07149835]
[1609607167932,4.582,778.42,778.38,20.07438575]
[1609607168129,14.99998143,778.41,778.38,20.07438575]
[1609607169131,6.01438,778.39,778.38,20.07438575]
[1609607169330,21.01436143,778.39,778.38,20.07438575]
[1609607170031,21.01436143,778.39,778.22,23.16275279]
[1609607170630,0.6,778.38,778.22,23.16275279]
[1609607171030,6.01438,778.23,778.22,23.16275279]
[1609607171230,21.01436143,778.23,778.06,26.25111983]
[1609607171730,0.3501,778.22,778.06,26.25111983]
[1609607172331,0.3501,778.22,778.0,26.30339645]
[1609607172530,5.2871,778.22,777.84,29.39791368]
[1609607172731,14.99998143,778.21,777.84,29.39791368]
[1609607173132,6.01438,777.85,777.84,29.39791368]
[1609607173335,21.01436143,777.85,777.84,29.39791368]
[1609607173832,21.01436143,777.85,777.61,30.9451723]
[1609607174933,21.01436143,777.85,777.0,31.10926846]
[1609607175132,6.01438,777.62,777.0,31.10926846]
[1609607175333,14.99998143,777.61,777.0,31.10926846]
[1609607175935,14.99998143,777.61,777.56,17.13977803]
[1609607179539,14.99998143,777.6,777.56,17.13977803]
[1609607179940,14.99998143,777.6,776.88,6.01438]
[1609607180540,14.99998143,777.59,776.88,6.01438]
[1609607180941,14.99998143,777.59,776.7,31.08831221]
[1609607181143,6.01438,776.91,776.76,6.01438]
[1609607181342,10.60438,776.91,776.76,6.01438]
[1609607183244,2.73476796,776.91,776.76,6.01438]
[1609607185045,6.01438,776.87,776.61,30.94560393]
[1609607185450,21.01436143,776.87,776.61,30.94560393]
[1609607186649,21.01436143,776.87,776.85,29.43605251]
[1609607187850,21.01436143,776.87,776.61,26.47603049]
[1609607188853,21.01436143,776.87,776.81,17.14062226]